bitfinex/quotes_SOLUSD_20250118
["timestamp","ask_amount","ask_price","bid_price","bid_amount"]
[1737193058456,20.45671884,237.01,236.93,233.34371884]
[1737193058634,20.45671884,237.03,236.95,233.34371884]
[1737193058833,20.45671884,237.01,236.97,75.587]
[1737193059059,20.45671884,236.99,236.97,75.587]
[1737193061744,29.66861884,237.12,236.97,75.587]
[1737193061745,20.45671884,237.01,236.97,75.587]
[1737193061956,20.45671884,237.07,236.98,20.45671884]
[1737193062248,9.2119,237.12,236.98,20.45671884]
[1737193062249,20.45671884,237.05,237.0,75.587]
[1737193062454,20.45671884,237.11,237.04,20.45671884]
[1737193062652,0.063,237.12,237.09,212.887]
[1737193062849,0.063,237.21,237.09,75.587]
[1737193063258,4.2787,237.21,237.09,75.587]
[1737193063769,4.2787,237.21,236.97,4.92]
[1737193063770,20.45671884,237.1,236.98,1.67021423]
[1737193063942,20.45671884,237.07,236.99,233.34371884]
[1737193064543,20.45671884,237.09,237.01,233.34371884]
[1737193064747,20.45671884,237.11,237.03,20.45671884]
[1737193065251,20.45671884,237.11,237.03,233.34371884]
[1737193065560,20.45671884,237.13,237.05,20.45671884]
[1737193067539,20.51971884,237.21,237.11,20.45671884]
[1737193067853,0.063,237.21,237.13,233.34371884]
[1737193068642,0.063,237.21,237.15,20.45671884]
[1737193068838,0.063,237.21,237.17,233.34371884]
[1737193069154,0.063,237.21,237.17,75.587]
[1737193070438,20.51971884,237.21,237.17,75.587]
[1737193071657,0.063,237.21,237.17,75.587]
[1737193072042,20.51971884,237.21,237.17,75.587]
[1737193072542,0.063,237.21,237.15,20.45671884]
[1737193073142,0.063,237.21,237.16,0.63225046]
[1737193073357,0.063,237.21,237.17,20.45671884]
[1737193073655,0.063,237.21,237.19,240.65671884]
[1737193074041,20.45671884,237.33,237.2,220.83215481]
[1737193074256,20.45671884,237.33,237.24,240.65671884]
[1737193074638,20.45681884,237.37,237.28,20.45671884]
[1737193074838,0.0001,237.37,237.3,20.45671884]
[1737193075057,0.0001,237.37,237.28,137.93189736]
[1737193075058,20.45671884,237.35,237.26,103.35671884]
[1737193075764,0.0001,237.37,237.3,240.65671884]
[1737193075941,0.0001,237.37,237.34,20.45671884]
[1737193076141,0.0001,237.37,237.36,20.45671884]
[1737193076358,0.0001,237.37,237.34,25.37671884]
[1737193076658,0.0001,237.37,237.34,4.92]
[1737193077044,20.45671884,237.36,237.3,82.9]
[1737193077867,20.45671884,237.34,237.3,82.9]
[1737193078383,0.0001,237.37,237.3,82.9]
[1737193078560,20.45671884,237.35,237.3,82.9]
[1737193078866,0.0001,237.37,237.3,103.35671884]
[1737193079059,20.45681884,237.37,237.3,82.9]
[1737193079446,0.0001,237.37,237.3,240.65671884]
[1737193079647,0.0001,237.37,237.32,20.45671884]
[1737193080948,0.0001,237.37,237.3,240.65671884]
[1737193081573,0.0001,237.37,237.3,220.2]
[1737193081750,0.0001,237.37,237.31,20.45671884]
[1737193082069,0.0001,237.37,237.3,220.2]
[1737193082368,20.45671884,237.34,237.3,220.2]
[1737193082746,20.45671884,237.32,237.3,82.9]
[1737193082951,24.67051884,237.32,237.3,82.9]
[1737193083151,24.67051884,237.32,237.17,20.45671884]
[1737193083152,23.776884,237.31,237.13,20.45671884]
[1737193083355,20.45671884,237.19,237.12,82.9]
[1737193083572,20.45671884,237.25,237.17,20.45671884]
[1737193083747,20.45671884,237.25,237.15,20.45671884]
[1737193084266,20.45671884,237.21,237.15,82.9]
[1737193084476,20.45671884,237.23,237.15,220.2]
[1737193086567,20.45671884,237.25,237.16,240.65671884]
[1737193087984,20.45671884,237.23,237.16,82.9]
[1737193088188,20.45671884,237.21,237.16,82.9]
[1737193088489,20.45671884,237.19,237.16,82.9]
[1737193088664,20.45671884,237.17,237.16,82.9]
[1737193089474,4.2154,237.22,237.16,82.9]
[1737193090064,20.45671884,237.21,237.16,82.9]
[1737193090359,20.45671884,237.18,237.16,82.9]
[1737193091763,24.67291884,237.18,237.16,82.9]
[1737193092957,26.49281884,237.18,237.14,137.3]
[1737193093163,20.45671884,237.15,237.05,0.03]
[1737193093362,20.45671884,237.12,237.05,0.03]
[1737193093667,20.45671884,237.12,237.05,20.48671884]
[1737193093866,6.7406,237.16,237.05,20.48671884]
[1737193093867,20.45671884,237.16,237.07,20.45671884]
[1737193096795,20.45671884,237.16,237.05,240.68671884]
[1737193096971,20.45671884,237.14,237.05,240.68671884]
[1737193097280,20.45671884,237.16,237.07,240.65671884]
[1737193097489,20.45671884,237.14,237.07,103.35671884]
[1737193097683,20.45671884,237.14,237.07,82.9]
[1737193097988,20.45671884,237.1,237.07,82.9]
[1737193098573,20.45671884,237.12,237.07,82.9]
[1737193099072,20.45671884,237.1,237.07,82.9]
[1737193099271,20.45671884,237.12,237.07,82.9]
[1737193099481,20.45671884,237.14,237.07,82.9]
[1737193099689,20.45671884,237.12,237.07,82.9]
[1737193100196,20.45671884,237.1,237.07,82.9]
[1737193100798,20.45671884,237.08,237.07,82.9]
[1737193101370,24.67461884,237.08,237.07,82.9]
[1737193101970,24.67461884,237.08,237.05,137.33]
[1737193102275,20.45671884,237.06,237.05,137.33]
[1737193102471,20.45671884,237.06,237.05,0.03]
[1737193102896,44.23360284,237.06,237.05,0.0001]
[1737193103296,23.776884,237.04,236.94,82.9]
[1737193103468,20.45671884,236.95,236.94,82.9]
[1737193105290,20.45671884,236.95,236.91,137.3]
[1737193105601,20.45671884,236.92,236.91,137.3]
[1737193106196,20.45671884,236.92,236.88,0.03]
[1737193106397,20.45671884,236.9,236.88,0.03]
[1737193106967,4.2203,236.95,236.88,0.03]
[1737193107190,20.45671884,236.93,236.88,0.03]
[1737193108482,4.2195,236.99,236.88,0.03]
[1737193108684,20.45671884,236.93,236.88,0.03]
[1737193108993,20.45671884,236.91,236.88,0.03]
[1737193110674,20.45671884,236.89,236.88,0.03]
[1737193118800,45.13473768,236.89,236.88,0.03]
[1737193120286,55.68813768,236.89,236.81,82.93]
[1737193120491,20.45671884,236.82,236.81,82.93]
[1737193122697,20.45671884,236.85,236.81,87.1527]
[1737193123086,20.45671884,236.83,236.81,82.93]
[1737193123592,20.45671884,236.84,236.81,82.93]
[1737193123801,20.45671884,236.88,236.81,224.4527]
[1737193124182,20.45671884,236.88,236.81,244.90941884]
[1737193124501,4.22,236.97,236.84,20.45671884]
[1737193124703,20.45671884,236.91,236.84,220.2]
[1737193124908,20.45671884,236.89,236.84,82.9]
[1737193125212,20.45671884,236.85,236.84,82.9]
[1737193126387,24.67871884,236.85,236.84,82.9]
[1737193126589,1.7824,236.84,236.81,0.03]
[1737193126793,20.45671884,236.83,236.81,0.03]
[1737193129084,4.2226,236.82,236.81,0.03]
[1737193129283,20.45671884,236.83,236.81,0.03]
[1737193129484,24.67911884,236.83,236.81,0.03]
[1737193130079,20.45671884,236.83,236.81,0.03]
[1737193130975,20.45671884,236.85,236.81,0.03]
[1737193131191,20.45671884,236.83,236.81,0.03]
[1737193132477,20.45671884,236.85,236.81,0.03]
[1737193133196,20.45671884,236.83,236.81,0.03]
[1737193135982,24.67921884,236.83,236.81,0.03]
[1737193136379,6.9428,236.82,236.81,0.03]
[1737193137285,11.1654,236.82,236.81,0.03]
[1737193137685,33.40711884,236.82,236.71,82.9]
[1737193137990,20.45671884,236.72,236.71,82.9]
[1737193138397,20.45671884,236.72,236.7,137.33]
[1737193138398,20.45671884,236.72,236.7,0.03]
[1737193140110,4.2231,236.8,236.7,0.03]
[1737193140287,20.45671884,236.74,236.7,0.03]
[1737193140601,20.45671884,236.86,236.73,240.65671884]
[1737193140785,7.0058,236.88,236.76,20.45671884]
[1737193140786,20.45671884,236.84,236.76,20.45671884]
[1737193141607,20.45671884,236.82,236.77,141.5235]
[1737193142199,20.45671884,236.8,236.73,220.2]
[1737193142400,20.45671884,236.78,236.73,82.9]
[1737193142585,20.45671884,236.76,236.73,82.9]
[1737193143205,20.45671884,236.75,236.73,220.2]
[1737193143389,20.45671884,236.77,236.73,224.4241]
[1737193143899,20.45671884,236.77,236.73,220.2]
[1737193144102,20.45671884,236.79,236.74,4.224]
[1737193145587,20.45671884,236.77,236.74,4.224]
[1737193145787,20.45671884,236.77,236.73,220.2]
[1737193146201,20.45671884,236.77,236.73,224.4241]
[1737193147394,20.45671884,236.74,236.73,220.2]
[1737193147999,20.45671884,236.76,236.73,220.2]
[1737193148428,20.45671884,236.74,236.73,220.2]
[1737193148727,20.45671884,236.74,236.7,0.03]
[1737193148897,20.45671884,236.71,236.7,0.03]
[1737193151820,38.563384,236.7,236.61,82.9]
[1737193152023,20.45671884,236.65,236.61,82.9]
[1737193152812,20.45671884,236.68,236.61,87.1263]
[1737193153019,20.45671884,236.66,236.61,82.9]
[1737193153235,20.45671884,236.64,236.61,82.9]
[1737193153612,21.7276,236.73,236.61,82.9]
[1737193153613,20.45671884,236.62,236.61,82.9]
[1737193154331,20.45671884,236.62,236.51,6.8595]
[1737193154332,20.45671884,236.62,236.49,82.93]
[1737193154536,20.45671884,236.57,236.49,82.93]
[1737193154735,20.45671884,236.59,236.5,20.45671884]
[1737193154903,20.45671884,236.61,236.52,20.45671884]
[1737193155109,20.45671884,236.61,236.54,20.45671884]
[1737193155953,20.45671884,236.65,236.56,20.45671884]
[1737193156235,20.45671884,236.58,236.5,220.83400562]
[1737193156447,20.45671884,236.56,236.5,82.9]
[1737193157250,20.45671884,236.56,236.5,87.1281]
[1737193157551,20.45671884,236.58,236.51,240.65671884]
[1737193157728,20.45671884,236.58,236.52,4.2279]
[1737193157918,20.45671884,236.58,236.51,87.1281]
[1737193158249,20.45671884,236.58,236.51,107.58481884]
[1737193158423,20.45671884,236.58,236.51,87.1281]
[1737193158840,20.45671884,236.58,236.51,107.58481884]
[1737193159043,20.45671884,236.58,236.51,87.1281]
[1737193159320,20.45671884,236.55,236.51,87.1281]
[1737193160047,20.45671884,236.53,236.51,82.9]
[1737193165239,20.45671884,236.5,236.49,0.03]
[1737193165950,24.68501884,236.5,236.49,0.03]
[1737193166434,24.68501884,236.5,236.38,82.9]
[1737193166435,20.0,236.46,236.38,82.9]
[1737193166634,40.91343768,236.4,236.38,82.9]
[1737193167445,40.91343768,236.4,236.37,0.03]
[1737193167755,20.45671884,236.38,236.37,0.03]
[1737193167943,4.2306,236.37,236.26,82.9]
[1737193168145,20.45671884,236.31,236.26,87.1325]
[1737193168487,20.45671884,236.27,236.26,82.9]
[1737193168666,20.45671884,236.27,236.16,138.958943]
[1737193168667,20.45671884,236.27,236.16,137.3]
[1737193168830,20.45671884,236.23,236.16,20.45671884]
[1737193169031,20.45671884,236.21,236.15,4.2344]
[1737193169767,20.45671884,236.19,236.13,87.1349]
[1737193169929,20.45671884,236.15,236.13,82.9]
[1737193170257,24.69131884,236.15,236.0,1.65851949]
[1737193170431,20.45671884,236.08,236.0,240.65671884]
[1737193170630,20.45671884,236.12,236.04,240.65671884]
[1737193171035,20.45671884,236.14,236.06,20.45671884]
[1737193171237,20.45671884,236.12,236.04,240.65671884]
[1737193171435,20.45671884,236.1,236.04,82.9]
[1737193171662,20.45671884,236.13,236.04,240.65671884]
[1737193172039,20.45671884,236.11,236.05,4.2363]
[1737193172274,20.45671884,236.09,236.05,4.2363]
[1737193172660,20.45671884,236.07,236.05,4.2363]
[1737193174386,20.45671884,236.12,236.05,224.4363]
[1737193174566,20.45671884,236.12,236.05,235.0272]
[1737193175081,20.45671884,236.16,236.08,240.65671884]
[1737193175286,20.45671884,236.18,236.1,20.45671884]
[1737193175458,20.45671884,236.2,236.12,20.45671884]
[1737193175778,20.45671884,236.18,236.1,240.65671884]
[1737193176015,1.7128,236.33,236.15,240.2]
[1737193176179,20.45671884,236.34,236.26,20.45671884]
[1737193176359,20.45671884,236.3,236.24,82.9]
[1737193176674,20.45671884,236.25,236.1,82.9]
[1737193176883,20.45671884,236.19,236.11,20.45671884]
[1737193177179,20.45671884,236.19,236.11,240.65671884]
[1737193177554,20.45671884,236.17,236.11,82.9]
[1737193177759,20.45671884,236.19,236.12,157.75671884]
[1737193177952,20.45671884,236.23,236.14,157.75671884]
[1737193178153,20.45671884,236.23,236.16,20.45671884]
[1737193178354,20.45671884,236.25,236.16,157.75671884]
[1737193178688,20.45671884,236.25,236.18,20.45671884]
[1737193178884,20.45671884,236.27,236.18,240.65671884]
[1737193179054,20.45671884,236.31,236.22,157.75671884]
[1737193179680,20.45671884,236.29,236.22,157.75671884]
[1737193180189,20.45671884,236.29,236.22,20.45671884]
[1737193181096,20.45671884,236.29,236.21,20.0]
[1737193181267,20.45671884,236.27,236.19,137.3]
[1737193181866,20.45671884,236.27,236.19,20.45671884]
[1737193182262,20.45671884,236.29,236.19,240.65671884]
[1737193183091,20.45671884,236.29,236.21,20.45671884]
[1737193183466,4.231,236.35,236.2,20.45671884]
[1737193183786,20.45671884,236.25,236.19,82.9]
[1737193184087,20.45671884,236.22,236.19,82.9]
[1737193184262,14.8085,236.35,236.19,82.9]
[1737193184465,20.45671884,236.25,236.19,82.9]
[1737193185290,0.0001,236.37,236.24,53.56343768]
[1737193185485,0.0001,236.37,236.31,20.45671884]
[1737193185664,0.0001,236.37,236.31,103.35671884]
[1737193185869,0.0001,236.37,236.31,82.9]
[1737193186701,0.0001,236.37,236.31,240.65671884]
[1737193187205,0.0001,236.37,236.31,220.2]
[1737193188281,0.0001,236.37,236.31,82.9]
[1737193188979,0.0001,236.37,236.31,103.35671884]
[1737193189185,0.0001,236.37,236.33,20.45671884]
[1737193189566,0.0001,236.37,236.31,89.966839]
[1737193189567,0.0001,236.37,236.35,20.45671884]
[1737193192098,0.0001,236.37,236.36,248.35795521]
[1737193192276,27.22841884,236.58,236.48,20.45671884]
[1737193192481,6.7717,236.58,236.52,20.45671884]
[1737193192777,1.7553,236.59,236.56,20.45671884]
[1737193192984,0.063,236.61,236.56,20.45671884]
[1737193193190,0.063,236.61,236.6,20.45671884]
[1737193193509,6.7717,236.73,236.63,20.0]
[1737193193707,1.7553,236.87,236.69,20.45671884]
[1737193193905,20.45671884,236.77,236.69,20.45671884]
[1737193194215,20.45671884,236.77,236.63,102.9]
[1737193194388,20.45671884,236.77,236.68,20.45671884]
[1737193194794,20.45671884,236.81,236.68,157.75671884]
[1737193195611,20.45671884,236.77,236.68,157.75671884]
[1737193195819,10.5552,236.85,236.63,102.9]
[1737193195820,4.2878,236.7,236.63,82.9]
[1737193196027,20.45671884,236.67,236.63,82.9]
[1737193196222,20.45671884,236.65,236.58,20.45671884]
[1737193196415,20.45671884,236.65,236.56,20.45671884]
[1737193197723,24.68241884,236.65,236.56,20.45671884]
[1737193198116,20.45671884,236.63,236.54,20.45671884]
[1737193198327,20.45671884,236.61,236.54,20.45671884]
[1737193198626,20.45671884,236.59,236.51,20.45671884]
[1737193198996,20.45671884,236.59,236.49,82.9]
[1737193198997,20.45671884,236.57,236.49,103.35671884]
[1737193199409,20.45671884,236.59,236.51,20.45671884]
[1737193201394,20.45671884,236.63,236.55,20.45671884]
[1737193202723,20.45671884,236.61,236.53,82.9]
[1737193202920,20.45671884,236.59,236.53,82.9]
[1737193203340,20.45671884,236.61,236.53,82.9]
[1737193203510,20.45671884,236.59,236.53,82.9]
[1737193204027,20.45671884,236.55,236.53,82.9]
[1737193204725,20.45671884,236.57,236.53,82.9]
[1737193205228,20.45671884,236.55,236.53,82.9]
[1737193205608,20.45671884,236.57,236.53,82.9]
[1737193205808,20.45671884,236.55,236.53,82.9]
[1737193208115,20.45671884,236.55,236.43,20.45671884]
[1737193208317,20.45671884,236.45,236.35,20.45671884]
[1737193208528,20.45671884,236.46,236.39,20.45671884]
[1737193208824,20.45671884,236.46,236.37,220.2]
[1737193208825,20.45671884,236.46,236.37,240.65671884]
[1737193209124,20.45671884,236.54,236.45,157.75671884]
[1737193209421,20.45671884,236.54,236.47,157.75671884]
[1737193209624,20.45671884,236.56,236.49,20.45671884]
[1737193209829,20.45671884,236.58,236.49,20.45671884]
[1737193210026,11.0711,236.61,236.53,20.45671884]
[1737193210027,20.45671884,236.6,236.53,20.45671884]
[1737193210530,0.063,236.63,236.55,20.45671884]
[1737193211129,0.063,236.63,236.61,20.45671884]
[1737193211422,0.063,236.63,236.61,157.75671884]
[1737193211626,0.063,236.63,236.55,0.63393543]
[1737193211627,24.74571884,236.63,236.53,82.9]
[1737193211932,20.45671884,236.58,236.53,82.9]
[1737193212114,20.45671884,236.6,236.53,82.9]
[1737193212729,20.45671884,236.58,236.53,82.9]
[1737193213542,0.063,236.63,236.55,20.45671884]
[1737193213733,20.45671884,236.62,236.53,240.65671884]
[1737193213931,20.45671884,236.62,236.53,220.2]
[1737193214234,20.45671884,236.59,236.53,220.2]
[1737193214439,20.45671884,236.55,236.53,82.9]
[1737193214636,20.45671884,236.55,236.43,1.68647917]
[1737193214940,20.45671884,236.51,236.44,20.45671884]
[1737193215134,20.45671884,236.55,236.46,240.65671884]
[1737193215430,20.45671884,236.57,236.48,20.45671884]
[1737193215637,20.45671884,236.57,236.48,240.65671884]
[1737193216941,0.063,236.63,236.56,20.45671884]
[1737193217414,0.063,236.63,236.57,0.63385322]
[1737193217617,0.063,236.63,236.58,240.65671884]
[1737193218336,0.063,236.63,236.6,240.65671884]
[1737193218518,0.063,236.7,236.6,240.65671884]
[1737193218519,0.063,236.7,236.6,220.2]
[1737193218718,0.063,236.7,236.67,240.65671884]
[1737193218915,0.063,236.7,236.67,220.2]
[1737193219811,0.063,236.7,236.68,0.63357957]
[1737193220041,0.063,236.87,236.69,258.20671884]
[1737193220236,0.063,236.87,236.8,240.65671884]
[1737193220433,0.063,236.87,236.84,20.45671884]
[1737193220617,0.063,236.87,236.84,21.08980608]
[1737193221238,0.063,236.87,236.84,225.73308724]
[1737193221443,0.063,236.87,236.84,258.44067968]
[1737193221627,0.063,236.87,236.86,253.54067968]
[1737193222823,0.063,236.87,236.86,220.2]
[1737193224052,0.063,236.87,236.86,226.54461677]
[1737193225333,0.063,236.87,236.86,220.2]
[1737193226349,0.063,236.87,236.86,82.9]
[1737193227934,33.40367968,236.87,236.71,33.34067968]
[1737193228134,0.063,236.87,236.79,33.34067968]
[1737193228330,4.2848,236.87,236.77,220.2]
[1737193228526,0.063,236.87,236.8,20.0]
[1737193228717,4.2847,236.87,236.77,220.2]
[1737193229126,0.063,236.87,236.77,220.2]
[1737193229447,33.34067968,236.85,236.77,220.2]
[1737193229644,33.34067968,236.81,236.77,82.9]
[1737193230352,33.34067968,236.79,236.77,82.9]
[1737193230756,33.34067968,236.81,236.77,82.9]
[1737193232022,33.34067968,236.83,236.77,82.9]
[1737193232367,33.34067968,236.79,236.77,82.9]
[1737193234555,4.2233,236.78,236.77,82.9]
[1737193235057,33.34067968,236.79,236.77,82.9]
[1737193236449,37.56387968,236.79,236.77,82.9]
[1737193236959,33.34067968,236.79,236.77,82.9]
[1737193237348,37.56387968,236.79,236.77,82.9]
[1737193237548,37.56377968,236.79,236.77,82.9]
[1737193237749,33.34067968,236.79,236.77,82.9]
[1737193239146,0.063,236.87,236.77,82.9]
[1737193239147,33.34067968,236.82,236.77,82.9]
[1737193241466,20.53660544,236.84,236.77,220.2]
[1737193242042,20.53660544,236.8,236.77,82.9]
[1737193243540,20.53660544,236.82,236.77,82.9]
[1737193244043,20.53660544,236.84,236.77,220.2]
[1737193245367,20.53660544,236.86,236.77,220.2]
[1737193245662,20.53660544,236.86,236.78,241.36990171]
[1737193245960,0.063,236.87,236.8,20.53660544]
[1737193246267,20.53660544,236.84,236.78,220.2]
[1737193246755,20.53660544,236.82,236.78,82.9]
[1737193247369,20.53660544,236.8,236.78,82.9]
[1737193250946,20.53660544,236.8,236.64,220.2]
[1737193250947,20.53660544,236.79,236.64,220.2]
[1737193251261,20.53660544,236.69,236.64,82.9]
[1737193251463,20.53660544,236.67,236.64,220.2]
[1737193251877,20.53660544,236.69,236.64,220.2]
[1737193252165,20.53660544,236.71,236.64,220.2]
[1737193252569,20.53660544,236.71,236.64,240.73660544]
[1737193252777,20.53660544,236.73,236.64,240.73660544]
[1737193253550,20.53660544,236.73,236.65,0.63366056]
[1737193254154,20.53660544,236.75,236.68,20.53660544]
[1737193254353,0.063,236.8,236.73,240.73660544]
[1737193255448,20.59960544,236.8,236.73,220.2]
[1737193255649,20.53660544,236.74,236.73,82.9]
[1737193262669,24.76060544,236.74,236.73,82.9]
[1737193262977,20.53660544,236.74,236.73,82.9]
[1737193264564,20.53660544,236.74,236.73,243.976884]
[1737193264769,0.063,236.87,236.79,263.976884]
[1737193264975,0.063,236.87,236.84,240.2]
[1737193265278,0.063,236.87,236.85,44.94664307]
[1737193265462,0.063,236.87,236.85,265.14664307]
[1737193265664,0.063,236.87,236.86,220.83293892]
[1737193265878,20.59960544,236.87,236.86,82.9]
[1737193266580,0.063,236.87,236.86,82.9]
[1737193267576,7.0485,236.85,236.71,225.08]
[1737193267774,20.53660544,236.77,236.71,225.08]
[1737193268082,20.53660544,236.81,236.74,20.0]
[1737193268386,20.53660544,236.81,236.72,23.776884]
[1737193269081,20.53660544,236.79,236.72,243.976884]
[1737193269466,33.38062748,236.79,236.72,243.976884]
[1737193269660,0.063,236.87,236.75,240.2]
[1737193269867,0.063,236.88,236.86,240.2]
[1737193270075,0.063,236.88,236.87,277.99055894]
[1737193270362,0.063,236.88,236.87,82.9]
[1737193271862,0.063,236.88,236.87,106.676884]
[1737193272084,0.063,236.88,236.87,140.05751148]
[1737193272274,0.063,236.88,236.87,277.35751148]
[1737193272476,0.063,236.88,236.87,82.9]
[1737193276497,32.44119439,236.89,236.87,82.9]
[1737193276987,33.38062748,236.93,236.87,82.9]
[1737193277179,33.38062748,236.91,236.87,82.9]
[1737193278076,7.1363,237.05,236.89,253.58062748]
[1737193278386,33.38062748,236.96,236.89,220.2]
[1737193278798,33.38062748,236.98,236.89,220.2]
[1737193279092,7.1363,237.05,236.89,220.2]
[1737193279093,33.38062748,236.96,236.89,220.2]
[1737193279298,33.38062748,236.98,236.9,57.79048451]
[1737193279478,33.38062748,237.02,236.93,23.776884]
[1737193279671,33.38062748,237.02,236.93,24.40973626]
[1737193279866,33.38062748,236.98,236.9,253.58062748]
[1737193280291,33.38062748,236.98,236.93,20.0]
[1737193280594,33.38062748,237.01,236.93,20.0]
[1737193280893,33.38062748,237.01,236.92,33.38062748]
[1737193281398,33.38062748,237.01,236.93,24.40976986]
[1737193281896,33.38062748,237.01,236.93,23.776884]
[1737193282292,33.38062748,237.01,236.93,24.40977684]
[1737193283688,33.38062748,237.03,236.93,24.40977684]
[1737193283885,33.38062748,237.03,236.93,244.60977684]
[1737193284071,33.38062748,237.03,236.93,243.976884]
[1737193284594,33.44362748,237.05,236.93,243.976884]
[1737193284896,0.063,237.05,236.96,20.0]
[1737193285101,0.063,237.05,237.01,33.38062748]
[1737193285286,0.063,237.05,237.04,243.976884]
[1737193285769,0.063,237.05,237.04,82.9]
[1737193288588,4.2186,237.04,236.89,220.2]
[1737193288791,33.38062748,236.92,236.89,82.9]
[1737193289495,20.51668224,236.94,236.89,82.9]
[1737193290807,20.51668224,236.9,236.89,82.9]
[1737193293506,20.51668224,236.92,236.89,82.9]
[1737193293678,20.51668224,236.9,236.89,82.9]
[1737193294710,20.51668224,236.94,236.89,82.9]
[1737193295690,20.51668224,236.96,236.89,220.2]
[1737193296195,20.51668224,236.98,236.9,157.81668224]
[1737193296377,20.51668224,236.96,236.89,82.9]
[1737193297685,20.51668224,236.94,236.89,82.9]
[1737193297876,20.51668224,236.92,236.89,82.9]
[1737193298083,20.51668224,236.9,236.89,82.9]
[1737193299702,7.1742,236.89,236.87,0.03]
[1737193299876,42.72576448,236.88,236.87,0.03]
[1737193300284,20.0,236.85,236.76,82.9]
[1737193300507,20.51668224,236.79,236.76,82.9]
[1737193300805,20.51668224,236.81,236.79,20.0]
[1737193300977,20.51668224,236.81,236.79,82.9]
[1737193304495,4.2223,236.84,236.79,82.93]
[1737193304696,20.51668224,236.8,236.79,82.93]
[1737193306895,4.2231,236.79,236.67,220.2]
[1737193307212,20.51668224,236.69,236.67,82.9]
[1737193312794,20.51668224,236.77,236.7,240.2]
[1737193312999,20.51668224,236.83,236.77,220.2]
[1737193313321,20.51668224,236.81,236.77,82.9]
[1737193313694,20.51668224,236.81,236.77,220.2]
[1737193313894,11.0495,236.87,236.77,82.9]
[1737193314106,20.51668224,236.79,236.77,82.9]
[1737193314804,20.51668224,236.81,236.77,82.9]
[1737193315997,20.51668224,236.85,236.8,20.0]
[1737193316313,20.51668224,236.91,236.83,240.71668224]
[1737193316719,20.51668224,236.91,236.84,220.83310804]
[1737193317014,20.51668224,236.91,236.84,220.2]
[1737193318512,6.8278,236.99,236.87,240.2]
[1737193318513,20.51668224,236.93,236.87,240.2]
[1737193319814,20.51668224,236.91,236.87,240.2]
[1737193320120,20.51668224,236.91,236.87,220.2]
[1737193320319,20.51668224,236.89,236.87,82.9]
[1737193320525,20.51668224,236.88,236.87,82.9]
[1737193320725,20.51668224,236.89,236.75,240.71668224]
[1737193320918,20.51668224,236.81,236.75,220.2]
[1737193321233,20.51668224,236.89,236.75,82.9]
[1737193321234,20.51668224,236.79,236.75,82.9]
[1737193321824,20.51668224,236.77,236.75,82.9]
[1737193322699,24.74018224,236.77,236.75,82.9]
[1737193324201,20.51668224,236.76,236.75,82.9]
[1737193324426,4.2238,236.75,236.67,0.03]
[1737193324729,20.51668224,236.68,236.67,0.03]
[1737193332930,20.51668224,236.68,236.67,0.0001]
[1737193334118,24.74178224,236.68,236.67,0.0001]
[1737193336410,20.0,236.65,236.63,0.03]
[1737193336740,20.51668224,236.64,236.63,0.03]
[1737193338234,20.51668224,236.68,236.63,0.03]
[1737193338538,24.74248224,236.64,236.63,0.03]
[1737193339235,20.0,236.61,236.56,137.33]
[1737193339436,4.2233,236.78,236.56,240.74668224]
[1737193339614,20.51668224,236.6,236.56,82.93]
[1737193340024,20.51668224,236.64,236.63,0.03]
[1737193340340,20.51668224,236.65,236.63,0.03]
[1737193343044,24.74238224,236.65,236.63,0.03]
[1737193343242,20.51668224,236.65,236.63,0.03]
[1737193344048,20.51668224,236.64,236.63,0.03]
[1737193344224,20.51668224,236.57,236.56,61.77416883]
[1737193345824,20.51668224,236.57,236.56,47.09782668]
[1737193346725,20.51668224,236.59,236.56,47.09782668]